bitfinex/quotes_ETHUSD_20250314
["timestamp","ask_amount","ask_price","bid_price","bid_amount"]
[1741981651408,15.81697287,1937.7,1937.4,0.7762]
[1741981651593,5.16106,1937.6,1937.4,1.37515398]
[1741981651809,5.16106,1937.6,1937.4,0.7762]
[1741981652408,10.65614287,1937.7,1937.4,0.7762]
[1741981652923,5.16105,1937.6,1937.4,0.82780953]
[1741981653509,5.16129,1937.5,1937.4,0.7762]
[1741981654106,5.16109,1937.6,1937.4,0.7762]
[1741981655203,10.65608287,1937.7,1937.4,0.7762]
[1741981655609,5.49531287,1937.7,1937.4,5.93764]
[1741981655802,15.81709287,1937.7,1937.5,0.593764]
[1741981655998,15.81709287,1937.7,1937.4,0.7762]
[1741981656326,5.16102,1937.6,1937.4,0.7762]
[1741981656689,10.65623287,1937.7,1937.4,0.7762]
[1741981656887,5.16024,1937.9,1937.6,5.16082]
[1741981657194,5.16024,1937.9,1937.6,0.7864]
[1741981657817,5.16024,1937.9,1937.6,5.94741]
[1741981658023,10.65530287,1938.0,1937.7,0.64634288]
[1741981658323,5.16049,1937.8,1937.7,0.594741]
[1741981658523,5.16049,1937.8,1937.6,0.83800322]
[1741981658693,5.16033,1937.9,1937.6,0.7864]
[1741981658895,10.32077,1937.9,1937.6,0.7864]
[1741981659101,5.16032,1937.9,1937.6,0.7864]
[1741981659794,10.65526287,1938.0,1937.7,5.2121419]
[1741981659993,10.65526287,1938.0,1937.8,0.52121419]
[1741981660204,10.65526287,1938.0,1937.7,0.0516019]
[1741981660425,10.65526287,1938.0,1937.8,0.7984]
[1741981660628,8.15955,1938.2,1937.8,0.7984]
[1741981660825,8.15955,1938.2,1937.8,5.95872]
[1741981660997,8.15955,1938.2,1937.9,0.595872]
[1741981661191,8.15955,1938.2,1937.9,0.6474689]
[1741981661409,13.31916,1938.2,1937.9,0.6474689]
[1741981661599,8.15955,1938.2,1937.9,0.6474689]
[1741981661798,13.31918,1938.2,1937.9,0.6474689]
[1741981661993,8.15955,1938.2,1937.9,0.6474689]
[1741981662218,5.15977,1938.1,1937.9,0.6474689]
[1741981662498,5.49531287,1938.3,1938.0,5.15986]
[1741981662703,10.65457287,1938.3,1938.1,0.515986]
[1741981663020,10.65457287,1938.3,1938.0,0.7599]
[1741981663422,10.65457287,1938.3,1938.0,0.8114934]
[1741981664330,5.15942,1938.2,1938.0,0.8114934]
[1741981665723,5.15942,1938.2,1938.0,0.7599]
[1741981666201,5.15942,1938.2,1937.9,0.595872]
[1741981666202,5.15969,1938.1,1937.9,0.595872]
[1741981666525,5.49531287,1938.3,1937.7,0.05159674]
[1741981666526,0.7708,1938.2,1937.7,0.05159674]
[1741981666724,5.15978,1938.1,1937.7,5.21213674]
[1741981666929,5.16002,1938.0,1937.7,0.05159674]
[1741981668018,5.16002,1938.0,1937.7,5.21233674]
[1741981668295,5.15945,1938.2,1937.7,5.21233674]
[1741981668296,5.15945,1938.2,1937.9,0.7599]
[1741981668496,5.49531287,1938.3,1937.9,5.97152507]
[1741981668720,5.49531287,1938.3,1937.9,5.91993]
[1741981668925,5.49531287,1938.3,1938.0,0.05159221]
[1741981669126,5.49531287,1938.3,1938.0,5.21144221]
[1741981669327,5.49531287,1938.3,1938.1,0.52114422]
[1741981670028,10.65463287,1938.3,1938.1,0.52114422]
[1741981670226,15.81400287,1938.3,1937.9,5.91993]
[1741981670526,15.81391287,1938.3,1938.0,0.05159223]
[1741981670735,15.81399287,1938.3,1938.0,0.05159223]
[1741981670899,5.15928,1938.3,1938.0,0.05159223]
[1741981671099,5.15944,1938.2,1938.0,0.05159223]
[1741981671309,5.15944,1938.2,1938.0,0.64874445]
[1741981671507,5.15944,1938.2,1938.0,0.59715222]
[1741981671712,5.15978,1938.1,1937.9,0.7599]
[1741981671902,5.15978,1938.1,1937.9,0.81149572]
[1741981672124,10.31798,1938.4,1937.9,5.97168572]
[1741981672312,5.15919,1938.3,1937.9,5.92009]
[1741981672631,5.15919,1938.3,1938.0,5.15993]
[1741981672831,5.15919,1938.3,1938.1,0.515993]
[1741981673509,5.49531287,1938.5,1938.1,5.7272538]
[1741981673711,5.15897,1938.4,1938.1,0.5675838]
[1741981673910,10.31806,1938.4,1938.1,0.5675838]
[1741981674561,0.8072,1938.8,1938.3,5.15901]
[1741981674734,5.15837,1938.6,1938.4,0.515901]
[1741981676028,8.15818,1938.7,1938.4,0.515901]
[1741981676233,5.15846,1938.6,1938.2,5.93598]
[1741981676435,5.15916,1938.3,1938.1,0.515993]
[1741981676638,5.15916,1938.3,1938.0,0.8262]
[1741981676639,5.15942,1938.2,1938.0,0.8262]
[1741981676812,5.15916,1938.3,1938.0,0.8262]
[1741981677711,5.15911,1938.4,1938.0,5.98615]
[1741981677937,5.15927,1938.3,1938.0,0.8262]
[1741981678439,5.15927,1938.3,1938.0,1.931229]
[1741981679240,5.15927,1938.3,1938.0,7.091179]
[1741981679418,5.15927,1938.3,1938.0,1.931229]
[1741981680523,5.15925,1938.3,1938.0,1.931229]
[1741981680822,5.15996,1938.0,1937.8,0.7751]
[1741981681545,10.3196,1938.1,1937.8,0.7751]
[1741981681718,5.15971,1938.1,1937.8,0.7751]
[1741981682447,10.31958,1938.1,1937.8,0.7751]
[1741981682946,5.15998,1938.0,1937.8,0.7751]
[1741981683241,5.15971,1938.1,1937.8,1.368674]
[1741981683646,5.15971,1938.1,1937.8,6.529084]
[1741981683942,5.15971,1938.1,1937.9,0.05159637]
[1741981687250,5.16012,1938.0,1937.8,1.368674]
[1741981687420,5.16012,1938.0,1937.8,0.7751]
[1741981687921,5.15947,1938.2,1937.9,5.16]
[1741981688351,14.47700287,1938.6,1938.2,5.15927]
[1741981688645,5.15863,1938.5,1938.1,5.93904]
[1741981689251,5.15908,1938.4,1938.1,0.7794]
[1741981689588,5.15926,1938.3,1938.1,1.373316]
[1741981689752,5.15926,1938.3,1938.1,0.7794]
[1741981689973,5.15897,1938.4,1938.1,0.7794]
[1741981690123,5.15865,1938.5,1938.2,0.05158884]
[1741981690446,5.49531287,1938.6,1938.2,5.21100884]
[1741981690652,5.98106,1938.8,1938.4,5.93813]
[1741981690946,5.15786,1938.8,1938.5,0.593813]
[1741981691327,5.15786,1938.8,1938.6,0.05157819]
[1741981692419,0.8232,1939.0,1938.5,0.593813]
[1741981692653,5.15796,1938.8,1938.5,0.593813]
[1741981692960,5.15819,1938.7,1938.4,0.7794]
[1741981693451,5.15796,1938.8,1938.5,0.05157954]
[1741981693664,5.15757,1938.9,1938.5,5.20999954]
[1741981693826,5.1573,1939.0,1938.6,5.93753]
[1741981694153,5.1573,1939.0,1938.7,0.05157262]
[1741981694359,16.63236287,1939.2,1938.8,5.15776]
[1741981694552,5.15722,1939.1,1938.7,0.59891026]
[1741981695570,5.15757,1938.9,1938.7,0.59891026]
[1741981695772,5.15757,1938.9,1938.6,0.7794]
[1741981696559,5.15787,1938.8,1938.6,0.7794]
[1741981696849,5.15757,1938.9,1938.6,0.7794]
[1741981697095,5.15783,1938.8,1938.6,0.7794]
[1741981697237,10.31587,1938.8,1938.6,0.7794]
[1741981697432,5.15857,1938.6,1938.2,0.76]
[1741981697632,5.15878,1938.5,1938.2,5.817]
[1741981699460,1.031587,1938.8,1938.3,0.05158415]
[1741981699461,5.1582,1938.7,1938.3,0.05158415]
[1741981699661,10.31653,1938.7,1938.3,0.05158415]
[1741981699961,5.1582,1938.7,1938.2,10.97629]
[1741981700132,5.1582,1938.7,1938.3,1.14921092]
[1741981700331,5.15848,1938.6,1938.3,1.14921092]
[1741981700531,5.15848,1938.6,1938.3,1.097629]
[1741981700732,10.31764,1938.5,1938.3,1.097629]
[1741981700937,5.15926,1938.3,1938.0,0.76]
[1741981701362,5.15945,1938.2,1938.0,0.76]
[1741981701664,5.15969,1938.1,1937.7,5.816]
[1741981701986,5.15945,1938.2,1937.8,0.63319564]
[1741981702273,5.15945,1938.2,1937.8,0.5816]
[1741981702274,5.15976,1938.1,1937.8,0.5816]
[1741981702482,5.15998,1938.0,1937.8,0.5816]
[1741981702631,5.15998,1938.0,1937.7,0.76]
[1741981703037,5.16014,1938.0,1937.7,0.76]
[1741981703293,10.3203,1938.0,1937.7,0.76]
[1741981703459,5.16087,1937.7,1937.4,0.76]
[1741981703640,5.1614,1937.5,1937.2,0.76]
[1741981703947,5.16109,1937.6,1937.2,6.51422]
[1741981704578,5.16077,1937.7,1937.2,6.51414]
[1741981704756,10.32176,1937.7,1937.3,5.21326902]
[1741981704964,5.16103,1937.6,1937.2,6.51414]
[1741981706235,5.16103,1937.6,1937.2,11.67604]
[1741981706441,3.0,1937.8,1937.4,5.16143]
[1741981706778,5.16083,1937.7,1937.5,0.05160772]
[1741981707275,10.32181,1937.7,1937.5,0.05160772]
[1741981707442,10.32181,1937.7,1937.3,6.38089174]
[1741981707843,5.16056,1937.8,1937.3,6.38089174]
[1741981708072,5.16075,1937.7,1937.4,0.63808917]
[1741981711048,5.16119,1937.6,1937.2,5.92207]
[1741981713474,10.32181,1937.7,1937.3,5.1618]
[1741981713776,5.16105,1937.6,1937.2,5.92202]
[1741981714988,5.16105,1937.6,1937.2,11.08393]
[1741981715486,10.32186,1937.7,1937.3,5.16176]
[1741981715689,5.16085,1937.7,1937.4,0.516176]
[1741981716608,5.16111,1937.6,1937.4,0.516176]
[1741981717366,10.32225,1937.6,1937.2,5.9219]
[1741981717607,5.1615,1937.5,1937.2,0.76]
[1741981717790,10.323,1937.5,1937.2,0.76]
[1741981718180,5.16159,1937.4,1937.1,5.16221]
[1741981718367,5.16159,1937.4,1937.0,1.352505]
[1741981718566,5.16135,1937.5,1937.1,5.21383633]
[1741981718794,5.16105,1937.6,1937.1,6.38670946]
[1741981718964,5.16159,1937.4,1937.1,6.38670946]
[1741981719168,5.16159,1937.4,1937.1,1.22448946]
[1741981719867,5.16159,1937.4,1937.1,6.38682946]
[1741981720082,5.16129,1937.5,1937.1,6.38673946]
[1741981720473,5.16166,1937.4,1937.1,1.22448946]
[1741981720778,5.16067,1937.8,1937.4,5.16144]
[1741981721299,10.32141,1937.8,1937.4,5.21304968]
[1741981721503,10.32137,1937.8,1937.4,5.21304968]
[1741981721796,0.7527,1937.9,1937.5,5.16119]
[1741981721797,5.91304,1937.9,1937.5,5.16119]
[1741981722006,3.0,1938.0,1937.4,6.27478297]
[1741981722169,5.16078,1937.7,1937.4,1.11334297]
[1741981722365,5.16078,1937.7,1937.3,5.92039]
[1741981722672,5.16103,1937.6,1937.3,0.7586]
[1741981722872,5.16082,1937.7,1937.3,5.92038]
[1741981723105,5.16082,1937.7,1937.3,0.7586]
[1741981723400,5.16104,1937.6,1937.3,0.7586]
[1741981723781,5.16081,1937.7,1937.3,5.92041]
[1741981723980,5.16081,1937.7,1937.4,0.64364913]
[1741981724199,5.16081,1937.7,1937.4,0.64364915]
[1741981724701,5.16081,1937.7,1937.4,0.592041]
[1741981727096,5.16081,1937.7,1937.4,0.64364921]
[1741981727402,5.16051,1937.8,1937.4,5.80505921]
[1741981727571,10.32118,1937.8,1937.4,5.80505921]
[1741981728402,5.16076,1937.7,1937.4,5.80505921]
[1741981728604,5.16025,1937.9,1937.5,5.74163592]
[1741981728905,5.16051,1937.8,1937.5,0.58050592]
[1741981729093,0.7673,1938.0,1937.6,0.05160824]
[1741981729293,5.92734,1938.0,1937.6,5.21246358]
[1741981729494,5.15971,1938.1,1937.7,5.68198636]
[1741981729696,0.7673,1938.2,1937.8,5.16049]
[1741981730007,5.92682,1938.2,1937.8,5.21192963]
[1741981730174,5.159,1938.4,1937.9,0.7772]
[1741981730494,10.31807,1938.4,1938.0,5.15983]
[1741981730700,5.15916,1938.3,1938.0,5.15983]
[1741981730897,5.15916,1938.3,1937.9,0.8287954]
[1741981731081,5.15947,1938.2,1937.9,0.7772]
[1741981731480,5.15947,1938.2,1937.9,0.82879548]
[1741981731706,5.15947,1938.2,1937.9,0.7772]
[1741981732005,5.15969,1938.1,1937.9,0.7772]
[1741981732211,10.31958,1938.1,1937.7,11.47206636]
[1741981732404,5.15969,1938.1,1937.8,1.14720664]
[1741981732577,5.15999,1938.0,1937.7,11.47206636]
[1741981732977,5.15999,1938.0,1937.7,11.47217636]
[1741981733608,5.15976,1938.1,1937.7,11.47217636]
[1741981733978,10.32011,1938.0,1937.7,6.31144636]
[1741981734178,5.16023,1937.9,1937.5,6.51887592]
[1741981734784,5.15996,1938.0,1937.6,5.16099]
[1741981734981,10.32014,1938.0,1937.6,5.16099]
[1741981735584,5.15996,1938.0,1937.6,5.16099]
[1741981735783,5.15996,1938.0,1937.7,0.516099]
[1741981736381,5.1597,1938.1,1937.7,5.676759]
[1741981736578,5.1597,1938.1,1937.8,0.05159959]
[1741981736794,5.1597,1938.1,1937.7,5.676759]
[1741981737209,5.1597,1938.1,1937.7,5.676659]
[1741981737417,5.1597,1938.1,1937.8,0.61926545]
[1741981737715,5.1597,1938.1,1937.8,1.39876545]
[1741981738212,5.1597,1938.1,1937.8,6.55923545]
[1741981738410,5.1597,1938.1,1937.8,1.39876545]
[1741981738615,11.08634,1938.2,1937.8,6.55915545]
[1741981738812,5.92672,1938.2,1937.8,6.55915545]
[1741981739115,5.15971,1938.1,1937.8,1.39876545]
[1741981739483,5.15952,1938.2,1937.8,6.55912545]
[1741981739812,9.97135758,1938.4,1937.8,1.39876545]
[1741981740005,5.15982,1938.1,1937.8,0.7795]
[1741981740199,5.15997,1938.0,1937.8,0.7795]
[1741981740404,5.15997,1938.0,1937.7,5.16062]
[1741981740712,5.15997,1938.0,1937.6,5.94051]
[1741981741110,5.16024,1937.9,1937.6,0.7795]
[1741981741311,5.16088,1937.7,1937.4,0.7795]
[1741981741984,5.1608,1937.7,1937.3,5.16165]
[1741981742708,5.16078,1937.7,1937.3,5.16165]
[1741981743324,5.16103,1937.6,1937.3,5.16165]
[1741981743493,5.9289,1937.8,1937.4,5.16141]
[1741981743694,5.16078,1937.7,1937.3,5.16175]
[1741981744111,5.16078,1937.7,1937.4,0.05161037]
[1741981744430,4.04422758,1938.0,1937.5,5.94053]
[1741981744431,5.92825,1938.0,1937.5,5.94053]
[1741981744802,5.16034,1937.9,1937.5,5.94053]
[1741981745325,5.16034,1937.9,1937.5,0.7795]
[1741981745490,5.16056,1937.8,1937.5,0.7795]
[1741981745690,10.32076,1937.9,1937.5,7.051014]
[1741981745913,5.16034,1937.9,1937.5,7.051014]
[1741981746325,5.16034,1937.9,1937.6,0.05160509]
[1741981746485,5.92818,1938.0,1937.5,1.889744]
[1741981746699,5.15977,1938.1,1937.6,5.21243424]
[1741981747008,5.16007,1938.0,1937.6,5.21243424]
[1741981747207,5.16007,1938.0,1937.7,5.16075]
[1741981747403,5.16034,1937.9,1937.5,11.1018]
[1741981747604,5.16034,1937.9,1937.5,7.0508]
[1741981748318,5.92767,1938.2,1937.7,5.16075]
[1741981748319,0.7682,1938.2,1937.7,5.16075]
[1741981748621,5.15978,1938.1,1937.7,5.16075]
[1741981748786,5.92765,1938.2,1937.6,0.05160196]
[1741981748787,5.16,1938.0,1937.6,0.05160196]
[1741981748990,5.16035,1937.9,1937.5,12.21208]
[1741981749192,5.16035,1937.9,1937.6,1.221208]
[1741981749492,5.16035,1937.9,1937.5,5.94061]
[1741981749893,5.16001,1938.0,1937.6,5.16091]
[1741981751027,5.16034,1937.9,1937.5,11.10193]
[1741981751204,5.16034,1937.9,1937.5,5.94065]
[1741981751405,5.16034,1937.9,1937.5,11.10181]
[1741981751603,5.16034,1937.9,1937.5,12.211991]
[1741981751804,5.16087,1937.7,1937.2,5.94133]
[1741981752010,5.16049,1937.8,1937.3,5.21333891]
[1741981752199,5.16049,1937.8,1937.4,5.16139]
[1741981752396,5.16052,1937.8,1937.5,0.7795]
[1741981752729,10.32013,1938.0,1937.6,5.21238886]
[1741981752942,0.7682,1938.2,1937.6,5.21238886]
[1741981753098,5.15981,1938.1,1937.7,5.16065]
[1741981753428,5.92762,1938.2,1937.8,5.93998]
[1741981753633,0.7682,1938.2,1937.8,0.83109958]
[1741981753832,5.92721,1938.4,1938.0,5.15993]
[1741981754032,4.04422758,1938.6,1938.2,5.15925]
[1741981754033,0.7682,1938.6,1938.2,5.15925]
[1741981754331,5.15836,1938.6,1938.2,5.15925]
[1741981754631,10.31694,1938.6,1938.2,5.15925]
[1741981754832,5.15877,1938.5,1938.1,0.7795]
[1741981755013,5.15877,1938.5,1938.1,5.93913]
[1741981755218,5.15877,1938.5,1938.2,0.05158866]
[1741981755536,5.15836,1938.6,1938.2,5.21089866]
[1741981755721,5.15813,1938.7,1938.2,5.21094866]
[1741981755920,5.15813,1938.7,1938.3,5.15904]
[1741981756124,5.15838,1938.6,1938.2,5.15927]
[1741981756321,5.15813,1938.7,1938.3,5.675067]
[1741981756715,5.15813,1938.7,1938.4,0.82588308]
[1741981757172,5.15813,1938.7,1938.4,0.7743]
[1741981757509,5.15847,1938.6,1938.4,0.7743]
[1741981758928,5.15862,1938.5,1938.4,0.7743]
[1741981759128,5.15862,1938.5,1938.3,0.515927]
[1741981759302,10.31744,1938.5,1938.2,0.7984]
[1741981759506,5.15902,1938.4,1938.1,1.02409793]
[1741981759709,5.15902,1938.4,1938.0,16.627823]
[1741981760644,5.15902,1938.4,1938.0,11.468103]
[1741981760839,5.15902,1938.4,1938.0,16.627863]
[1741981761021,5.15902,1938.4,1938.1,1.6627863]
[1741981761540,5.15902,1938.4,1938.1,6.8224463]
[1741981761736,5.15902,1938.4,1938.1,1.6627863]
[1741981762339,10.31808,1938.4,1938.1,1.6627863]
[1741981762542,10.31808,1938.4,1938.0,5.509993]
[1741981762543,5.15918,1938.3,1938.0,5.509993]
[1741981763662,5.9762,1938.1,1937.7,5.98852]
[1741981763960,5.9762,1938.1,1937.7,10.96952]
[1741981764945,5.9762,1938.1,1937.7,5.8089]
[1741981764946,5.15996,1938.0,1937.7,5.8089]
[1741981765144,5.1606,1937.8,1937.5,0.8279]
[1741981765445,10.32131,1937.8,1937.5,0.8279]
[1741981765642,5.16078,1937.7,1937.5,1.097042]
[1741981765944,5.16078,1937.7,1937.4,5.16152]
[1741981766137,5.9771,1937.8,1937.5,5.16128]
[1741981766348,5.9771,1937.8,1937.5,0.05160623]
[1741981767447,0.8165,1937.8,1937.5,0.05160623]
[1741981767645,0.7699,1938.0,1937.7,5.16064]
[1741981767847,5.92998,1938.0,1937.6,5.95725]
[1741981768644,11.13348,1938.2,1937.8,5.16027]
[1741981768847,9.02522758,1938.4,1937.9,6.042149]
[1741981768848,15.01196758,1938.4,1937.9,6.042149]
[1741981769019,0.8276,1938.4,1938.1,5.1596]
[1741981769339,11.14455,1938.6,1938.2,6.04130577]
[1741981769514,5.986,1938.6,1938.2,6.04130577]
[1741981769719,5.1584,1938.6,1938.2,6.04130577]
[1741981769951,5.1584,1938.6,1938.3,5.15912]
[1741981770419,5.1584,1938.6,1938.2,11.14902]
[1741981770619,5.1584,1938.6,1938.2,12.315478]
[1741981771354,5.15867,1938.5,1938.2,1.996898]
[1741981771719,5.15867,1938.5,1938.2,1.166498]
[1741981771921,11.06925,1938.5,1938.2,1.166498]
[1741981772120,5.1589,1938.4,1938.2,1.166498]
[1741981772522,5.91037,1938.5,1938.1,10.66463]
[1741981772919,5.15891,1938.4,1938.1,10.66463]
[1741981773145,5.91039,1938.5,1938.1,10.66463]
[1741981774650,5.15899,1938.4,1938.1,5.50496]
[1741981774857,5.15899,1938.4,1938.1,0.51596]
[1741981775039,5.15899,1938.4,1938.0,0.7772]
[1741981775229,5.15954,1938.2,1937.8,5.16048]
[1741981775434,5.15954,1938.2,1937.8,10.96438]
[1741981775758,5.93304,1938.2,1937.8,10.96438]
[1741981776055,5.93304,1938.2,1937.8,5.97838]
[1741981776234,5.93304,1938.2,1937.9,0.597838]
[1741981776235,11.09266,1938.2,1937.9,0.597838]
[1741981776437,5.15969,1938.1,1937.9,0.597838]
[1741981776953,5.15969,1938.1,1937.7,5.756475]
[1741981777521,10.31963,1938.1,1937.7,5.756475]
[1741981777830,10.31963,1938.1,1937.8,0.05159816]
[1741981777831,5.15969,1938.1,1937.8,0.05159816]
[1741981778657,5.15969,1938.1,1937.8,5.21207816]
[1741981778958,5.16008,1938.0,1937.8,1.09684032]
[1741981779156,5.16008,1938.0,1937.7,0.595725]
[1741981780134,5.16008,1938.0,1937.7,5.80805611]
[1741981780334,5.15969,1938.1,1937.7,5.80791611]
[1741981780530,0.7735,1938.2,1937.9,5.16002]
[1741981780856,11.09257,1938.2,1937.8,5.93275]
[1741981781057,5.15969,1938.1,1937.8,7.1016605]
[1741981781263,5.93293,1938.2,1937.8,12.2619505]
[1741981781746,5.93293,1938.2,1937.8,7.1016005]
[1741981783461,10.31852,1938.3,1937.9,5.16007]
[1741981783664,5.15917,1938.3,1937.9,5.21166556]
[1741981783849,5.15917,1938.3,1937.9,6.44299217]
[1741981784167,5.15902,1938.4,1938.0,5.95926]
[1741981784555,5.15902,1938.4,1938.1,0.0515913]
[1741981784757,5.91839,1938.6,1938.2,5.15933]
[1741981785156,5.15842,1938.6,1938.3,0.05158947]
[1741981785362,5.1582,1938.7,1938.3,6.47955195]
[1741981785739,5.1582,1938.7,1938.3,6.47950195]
[1741981786065,5.1582,1938.7,1938.3,11.63856195]
[1741981786262,0.76,1938.9,1938.3,1.32049195]
[1741981786466,5.15775,1938.9,1938.5,0.7994]
[1741981786668,5.15793,1938.8,1938.5,0.7994]
[1741981787045,5.15793,1938.8,1938.5,5.958]
[1741981787637,5.15775,1938.9,1938.5,12.22815]
[1741981787864,5.15731,1939.0,1938.6,5.20993723]
[1741981788073,5.15731,1939.0,1938.6,0.05157723]
[1741981788367,5.15772,1938.9,1938.6,0.05157723]
[1741981788937,10.31547,1938.9,1938.6,0.05157723]
[1741981789270,5.15772,1938.9,1938.5,7.06955]
[1741981789468,5.15783,1938.8,1938.6,0.706955]
[1741981789967,5.15772,1938.9,1938.6,0.75853284]
[1741981790769,10.31547,1938.9,1938.6,0.75853284]
[1741981790968,5.15772,1938.9,1938.6,0.706955]
[1741981791276,10.31551,1938.9,1938.6,0.706955]
[1741981791570,10.31551,1938.9,1938.6,0.75853228]
[1741981791571,5.15772,1938.9,1938.6,0.75853228]
[1741981791878,5.15772,1938.9,1938.6,0.706955]
[1741981791879,5.15791,1938.8,1938.6,0.706955]
[1741981792179,5.15791,1938.8,1938.5,1.91107]
[1741981792376,5.15814,1938.7,1938.5,1.91107]
[1741981792672,5.15814,1938.7,1938.3,5.92474]
[1741981792970,5.15814,1938.7,1938.3,5.92464]
[1741981793166,10.31643,1938.7,1938.3,5.92464]
[1741981793374,5.15814,1938.7,1938.3,11.08364]
[1741981793671,5.15814,1938.7,1938.4,5.21042213]
[1741981793870,5.15814,1938.7,1938.5,0.52104221]
[1741981794274,0.8016,1938.8,1938.5,5.67965221]
[1741981794471,5.95952,1938.8,1938.5,0.52104221]
[1741981794769,10.31594,1938.8,1938.5,0.52104221]
[1741981797475,5.15809,1938.7,1938.5,0.52104221]
[1741981797677,5.15809,1938.7,1938.4,5.15883]
[1741981797974,5.15809,1938.7,1938.4,5.21041216]
[1741981798174,5.15791,1938.8,1938.4,5.21041216]
[1741981798373,5.15814,1938.7,1938.4,5.21041216]
[1741981799475,10.31537,1938.9,1938.5,5.15858]
[1741981799658,5.15758,1938.9,1938.5,0.7915]
[1741981799862,5.15784,1938.8,1938.5,0.7915]
[1741981800171,5.15784,1938.8,1938.5,1.39168822]
[1741981800382,4.04422758,1938.6,1938.1,5.95178]
[1741981800593,0.7681,1938.7,1938.1,0.7921]
[1741981800797,0.7582,1939.1,1938.3,5.15893]
[1741981801086,5.15768,1938.9,1938.6,0.8187]
[1741981801288,0.7582,1939.3,1938.7,5.15809]
[1741981801574,5.15696,1939.2,1938.9,0.8187]
[1741981801740,5.15727,1939.1,1938.7,0.8187]
[1741981801945,0.8012,1939.2,1938.7,0.8187]
[1741981801946,5.15743,1939.0,1938.7,0.8187]
[1741981802146,5.15782,1938.8,1938.5,0.7831]
[1741981802577,5.15703,1939.1,1938.6,0.0515783]
[1741981802749,5.15703,1939.1,1938.7,0.7521]
[1741981802944,9.20098758,1939.3,1938.8,5.1576]
[1741981802945,5.95952,1939.3,1938.8,5.1576]
[1741981803187,10.31331,1939.3,1938.9,0.7521]
[1741981803350,5.15648,1939.4,1938.9,0.7521]
[1741981803545,5.15661,1939.3,1938.9,0.7521]
[1741981803849,5.15661,1939.3,1938.7,6.412134]
[1741981803850,5.15756,1938.9,1938.7,6.412134]
[1741981804049,5.15756,1938.9,1938.7,1.397134]
[1741981804050,5.15782,1938.8,1938.7,1.397134]
[1741981804255,5.15782,1938.8,1938.7,0.8061]
[1741981804461,5.15782,1938.8,1938.5,5.8251]
[1741981804662,5.1573,1939.0,1938.6,0.05157738]
[1741981804990,5.15709,1939.1,1938.7,0.8061]
[1741981805285,5.15761,1938.9,1938.7,0.8061]
[1741981805781,5.15761,1938.9,1938.5,5.019]
[1741981805782,5.15814,1938.7,1938.5,0.8061]
[1741981805947,10.31641,1938.7,1938.5,0.85768086]
[1741981806151,10.31641,1938.7,1938.2,5.55927047]
[1741981806152,5.15906,1938.4,1938.2,0.00241783]
[1741981806680,5.93486,1938.3,1938.2,0.00241783]
[1741981807184,9.97908758,1938.3,1938.2,0.00241783]
[1741981807391,10.52908758,1938.3,1938.2,0.00241783]
[1741981807779,13.52908758,1938.3,1938.2,0.00241783]
[1741981807954,18.56208758,1938.3,1938.2,0.00241783]
[1741981808153,20.93420234,1938.3,1938.2,0.00241783]
[1741981809397,18.56208758,1938.3,1938.2,0.00241783]
[1741981809750,5.15906,1938.4,1938.2,0.00241783]
[1741981809953,5.15916,1938.3,1938.2,0.00241783]
[1741981810495,5.15902,1938.4,1938.2,0.00241783]
[1741981810906,3.0,1938.5,1938.2,0.00241783]
[1741981811200,5.15916,1938.3,1938.2,0.00241783]
[1741981811395,5.15868,1938.5,1938.2,0.00241783]
[1741981811695,5.15907,1938.4,1938.2,0.00241783]
[1741981811992,5.15867,1938.5,1938.2,0.00241783]
[1741981812567,0.7892,1938.8,1938.3,0.8316]
[1741981812875,10.31598,1938.8,1938.4,5.15876]
[1741981813181,5.15787,1938.8,1938.5,0.05158046]
[1741981813379,5.15787,1938.8,1938.3,5.99051]
[1741981813598,5.15816,1938.7,1938.4,0.599051]
[1741981813762,5.15789,1938.8,1938.4,5.757921]
[1741981813968,10.31593,1938.8,1938.4,5.757921]
[1741981814168,5.1581,1938.7,1938.4,0.599051]
[1741981814369,5.15841,1938.6,1938.4,0.599051]
[1741981814570,5.15841,1938.6,1938.3,0.8316]
[1741981814972,10.31701,1938.6,1938.3,0.8316]
[1741981815173,5.15864,1938.5,1938.3,0.8316]
[1741981815401,5.15841,1938.6,1938.3,0.8316]
[1741981815703,5.15863,1938.5,1938.3,0.8316]
[1741981815999,5.15889,1938.4,1938.3,1.47092236]
[1741981816200,5.15889,1938.4,1938.2,0.00241783]
[1741981816403,9.20338758,1938.3,1938.2,0.00241783]
[1741981818010,12.75338758,1938.3,1938.2,0.00241783]
[1741981818600,9.46226,1938.3,1938.2,0.00241783]
[1741981819774,9.46226,1938.3,1938.2,7.83e-06]
[1741981819970,11.73322052,1938.3,1938.2,7.83e-06]
[1741981825284,11.18322052,1938.3,1938.2,7.83e-06]
[1741981825480,5.91226,1938.3,1938.2,7.83e-06]
[1741981825685,5.15916,1938.3,1938.2,7.83e-06]
[1741981826310,5.15848,1938.6,1938.2,7.83e-06]
[1741981826510,5.15848,1938.6,1938.2,5.15937783]
[1741981826723,5.15848,1938.6,1938.4,0.7701]
[1741981826922,10.31703,1938.6,1938.4,1.363025]
[1741981827086,5.15862,1938.5,1938.4,0.7701]
[1741981828113,5.15847,1938.6,1938.4,0.7701]
[1741981828596,5.15809,1938.7,1938.4,0.7701]
[1741981828798,7.04422758,1938.9,1938.5,5.15858]
[1741981828799,5.15768,1938.9,1938.5,5.15858]
[1741981829208,10.31427,1939.1,1938.7,5.98585]
[1741981829426,5.15703,1939.1,1938.8,0.598585]
[1741981829617,10.31429,1939.1,1938.8,0.598585]
[1741981830020,5.1573,1939.0,1938.8,0.598585]
[1741981830219,5.1573,1939.0,1938.7,0.8278]
[1741981831729,10.31427,1939.1,1938.7,6.03742318]
[1741981832405,4.04422758,1939.3,1938.7,0.87937318]